[Event "LASS Vårturneringar 2018"]
[Site "Linköping, Sweden"]
[Date "2018.05.10"]
[Round "2.8"]
[White "Alos, Raul Toledano"]
[Black "Karlsson, Henrik"]
[Result "1-0"]
[TimeControl "90 min + 30 sec/move + 30 min/40 moves"]
[WhiteElo "1772"]
[BlackElo "1699"]

1. e4 {[%clk 01:30:57]} {[%emt 00:00:01]} e6 {[%clk 01:30:55]} {[%emt
00:00:05]} 2. d4 {[%clk 01:31:22]} {[%emt 00:00:05]} d5 {[%clk 01:31:21]}
{[%emt 00:00:04]} 3. e5 {[%clk 01:31:44]} {[%emt 00:00:09]} c5 {[%clk
01:31:45]} {[%emt 00:00:05]} 4. c3 {[%clk 01:32:11]} {[%emt 00:00:04]} Nc6
{[%clk 01:32:10]} {[%emt 00:00:05]} 5. Nf3 {[%clk 01:32:37]} {[%emt 00:00:05]}
Bd7 {[%clk 01:32:14]} {[%emt 00:00:25]} 6. a3 {[%clk 01:33:02]} {[%emt
00:00:06]} f6 {[%clk 01:31:37]} {[%emt 00:01:06]} 7. Bd3 {[%clk 01:32:02]}
{[%emt 00:01:30]} Qc7 {[%clk 01:29:57]} {[%emt 00:02:10]} 8. Qe2 {[%clk
01:32:09]} {[%emt 00:00:24]} c4 {[%clk 01:25:58]} {[%emt 00:04:28]} 9. Bc2
{[%clk 01:32:05]} {[%emt 00:00:34]} O-O-O {[%clk 01:25:43]} {[%emt 00:00:44]}
10. b3 {[%clk 01:30:13]} {[%emt 00:02:23]} cxb3 {[%clk 01:22:05]} {[%emt
00:04:08]} 11. Bxb3 {[%clk 01:30:32]} {[%emt 00:00:11]} Na5 {[%clk 01:22:31]}
{[%emt 00:00:04]} 12. Bc2 {[%clk 01:30:37]} {[%emt 00:00:25]} f5 {[%clk
01:16:01]} {[%emt 00:07:00]} 13. O-O {[%clk 01:28:20]} {[%emt 00:02:46]} Be7
{[%clk 01:14:39]} {[%emt 00:01:53]} 14. Bd3 {[%clk 01:26:37]} {[%emt 00:02:13]}
Nh6 {[%clk 01:14:00]} {[%emt 00:01:09]} 15. Bxh6 {[%clk 01:25:06]} {[%emt
00:02:01]} gxh6 {[%clk 01:14:22]} {[%emt 00:00:08]} 16. Nbd2 {[%clk 01:25:32]}
{[%emt 00:00:04]} Rhg8 {[%clk 01:13:17]} {[%emt 00:01:35]} 17. c4 {[%clk
01:25:47]} {[%emt 00:00:15]} Bc6 {[%clk 01:06:35]} {[%emt 00:07:11]} 18. Rfc1
{[%clk 01:21:19]} {[%emt 00:04:58]} dxc4 {[%clk 00:44:53]} {[%emt 00:22:13]} 19.
Bxc4 {[%clk 01:20:30]} {[%emt 00:01:19]} Nxc4 {[%clk 00:45:12]} {[%emt
00:00:11]} 20. Qxc4 {[%clk 01:19:59]} {[%emt 00:01:01]} Qd7 {[%clk 00:36:28]}
{[%emt 00:09:13]} 21. Ne1 {[%clk 01:15:01]} {[%emt 00:05:28]} Bg5 {[%clk
00:31:12]} {[%emt 00:05:47]} 22. Rc2 {[%clk 01:12:51]} {[%emt 00:02:40]} Qxd4
{[%clk 00:26:24]} {[%emt 00:05:18]} 23. Qxe6+ {[%clk 01:12:56]} {[%emt
00:00:24]} Kb8 {[%clk 00:25:01]} {[%emt 00:01:53]} 24. Rb1 {[%clk 01:04:33]}
{[%emt 00:08:54]} Bxd2 {[%clk 00:21:34]} {[%emt 00:03:57]} 25. Qxc6 {[%clk
01:03:56]} {[%emt 00:01:07]} Rg7 {[%clk 00:09:25]} {[%emt 00:12:39]} 26. Nf3
{[%clk 00:58:28]} {[%emt 00:05:57]} Qd3 {[%clk 00:01:45]} {[%emt 00:08:10]} 27.
Nxd2 {[%clk 00:58:19]} {[%emt 00:00:39]} Qe2 {[%clk 00:00:31]} {[%emt
00:01:45]} 28. Nf1 {[%clk 00:53:33]} {[%emt 00:05:16]} Qg4 {[%clk 00:00:32]}
{[%emt 00:00:29]} 29. Rcb2 {[%clk 00:51:26]} {[%emt 00:02:37]} Rdd7 {[%clk
00:30:30]} {[%emt 00:00:32]} 30. Ne3 {[%clk 01:21:08]} {[%emt 00:00:48]} Qf4
{[%clk 00:30:33]} {[%emt 00:00:28]} 1-0

[Event "LASS Vårturneringar 2018"]
[Site "Linköping, Sweden"]
[Date "2018.05.10"]
[Round "2.4"]
[White "Olsson, Simon"]
[Black "Bernhard, Jonathan"]
[Result "1/2-1/2"]
[TimeControl "90 min + 30 sec/move + 30 min/40 moves"]
[WhiteElo "2110"]
[BlackElo "1926"]

1. d4 {[%clk 01:30:57]} {[%emt 00:00:03]} e6 {[%clk 01:30:54]} {[%emt
00:00:07]} 2. c4 {[%clk 01:31:22]} {[%emt 00:00:06]} Nf6 {[%clk 01:31:10]}
{[%emt 00:00:13]} 3. Nc3 {[%clk 01:31:46]} {[%emt 00:00:06]} d5 {[%clk
01:31:32]} {[%emt 00:00:07]} 4. Bg5 {[%clk 01:32:09]} {[%emt 00:00:07]} c6
{[%clk 01:31:51]} {[%emt 00:00:11]} 5. e3 {[%clk 01:32:09]} {[%emt 00:00:31]}
Nbd7 {[%clk 01:32:11]} {[%emt 00:00:09]} 6. cxd5 {[%clk 01:32:09]} {[%emt
00:00:30]} exd5 {[%clk 01:32:13]} {[%emt 00:00:28]} 7. Bd3 {[%clk 01:32:35]}
{[%emt 00:00:05]} Be7 {[%clk 01:31:59]} {[%emt 00:00:43]} 8. Nge2 {[%clk
01:31:01]} {[%emt 00:02:04]} O-O {[%clk 01:30:44]} {[%emt 00:01:44]} 9. Qc2
{[%clk 01:31:25]} {[%emt 00:00:06]} Re8 {[%clk 01:31:07]} {[%emt 00:00:07]} 10.
O-O-O {[%clk 01:24:45]} {[%emt 00:07:11]} b5 {[%clk 01:27:51]} {[%emt
00:03:46]} 11. Ng3 {[%clk 01:24:07]} {[%emt 00:01:07]} h6 {[%clk 01:23:26]}
{[%emt 00:04:55]} 12. Bxf6 {[%clk 01:24:18]} {[%emt 00:00:20]} Bxf6 {[%clk
01:23:46]} {[%emt 00:00:09]} 13. Kb1 {[%clk 01:20:54]} {[%emt 00:03:54]} Nb6
{[%clk 01:14:21]} {[%emt 00:09:54]} 14. Bf5 {[%clk 01:20:23]} {[%emt 00:01:01]}
Nc4 {[%clk 01:10:49]} {[%emt 00:04:02]} 15. e4 {[%clk 01:18:15]} {[%emt
00:02:38]} dxe4 {[%clk 01:08:21]} {[%emt 00:02:58]} 16. Bxe4 {[%clk 01:17:42]}
{[%emt 00:01:04]} Qb6 {[%clk 01:04:04]} {[%emt 00:04:46]} 17. d5 {[%clk
01:00:27]} {[%emt 00:17:46]} Bb7 {[%clk 00:55:46]} {[%emt 00:08:46]} 18. Nh5
{[%clk 00:24:48]} {[%emt 00:36:09]} cxd5 {[%clk 00:47:57]} {[%emt 00:08:19]} 19.
Nxf6+ {[%clk 00:21:00]} {[%emt 00:04:18]} Qxf6 {[%clk 00:48:25]} {[%emt
00:00:02]} 20. Bxd5 {[%clk 00:21:08]} {[%emt 00:00:22]} Rab8 {[%clk 00:42:40]}
{[%emt 00:06:15]} 21. Bxc4 {[%clk 00:14:24]} {[%emt 00:07:15]} bxc4 {[%clk
00:42:58]} {[%emt 00:00:12]} 22. f3 {[%clk 00:14:50]} {[%emt 00:00:04]} Bc6
{[%clk 00:31:42]} {[%emt 00:11:45]} 23. Rhe1 {[%clk 00:13:38]} {[%emt
00:01:42]} Re7 {[%clk 00:31:29]} {[%emt 00:00:43]} 24. Rxe7 {[%clk 00:11:46]}
{[%emt 00:02:22]} Qxe7 {[%clk 00:31:58]} {[%emt 00:00:01]} 25. Qd2 {[%clk
00:11:51]} {[%emt 00:00:25]} Qb4 {[%clk 00:26:04]} {[%emt 00:06:22]} 26. Kc1
{[%clk 00:11:54]} {[%emt 00:00:28]} a5 {[%clk 00:23:48]} {[%emt 00:02:46]} 27.
Qe2 {[%clk 00:10:34]} {[%emt 00:01:49]} a4 {[%clk 00:23:11]} {[%emt 00:01:07]}
28. a3 {[%clk 00:10:22]} {[%emt 00:00:43]} Qc5 {[%clk 00:22:22]} {[%emt
00:01:18]} 29. Qd2 {[%clk 00:10:23]} {[%emt 00:00:30]} Re8 {[%clk 00:20:36]}
{[%emt 00:02:15]} 30. Qd4 {[%clk 00:10:05]} {[%emt 00:00:49]} Qg5+ {[%clk
00:20:59]} {[%emt 00:00:07]} 31. Qd2 {[%clk 00:09:48]} {[%emt 00:00:48]} Qe5
{[%clk 00:17:30]} {[%emt 00:03:57]} 32. h3 {[%clk 00:09:50]} {[%emt 00:00:29]}
Re7 {[%clk 00:16:36]} {[%emt 00:01:24]} 33. Qd4 {[%clk 00:07:45]} {[%emt
00:02:35]} Qg5+ {[%clk 00:16:26]} {[%emt 00:00:40]} 34. Qd2 {[%clk 00:08:07]}
{[%emt 00:00:08]} Re3 {[%clk 00:14:07]} {[%emt 00:02:47]} 35. Qd8+ {[%clk
00:07:44]} {[%emt 00:00:54]} Kh7 {[%clk 00:12:57]} {[%emt 00:01:39]} 36. Qxg5
{[%clk 00:08:04]} {[%emt 00:00:11]} hxg5 {[%clk 00:13:26]} {[%emt 00:00:01]} 37.
Kd2 {[%clk 00:08:11]} {[%emt 00:00:23]} Rd3+ {[%clk 00:13:28]} {[%emt
00:00:27]} 38. Ke2 {[%clk 00:08:21]} {[%emt 00:00:19]} Rxd1 {[%clk 00:13:31]}
{[%emt 00:00:29]} 39. Nxd1 {[%clk 00:06:09]} {[%emt 00:02:41]} f5 {[%clk
00:12:59]} {[%emt 00:01:02]} 40. Ke3 {[%clk 00:01:49]} {[%emt 00:04:50]} Kg6
{[%clk 00:12:48]} {[%emt 00:00:41]} 41. g3 {[%clk 00:29:07]} {[%emt 00:03:12]}
g4 {[%clk 00:42:04]} {[%emt 00:01:14]} 42. hxg4 {[%clk 00:28:56]} {[%emt
00:00:42]} fxg4 {[%clk 00:42:26]} {[%emt 00:00:08]} 43. f4 {[%clk 00:27:47]}
{[%emt 00:01:39]} Kf6 {[%clk 00:40:02]} {[%emt 00:02:54]} 44. Kd4 {[%clk
00:26:41]} {[%emt 00:01:35]} Bf3 {[%clk 00:38:07]} {[%emt 00:02:26]} 45. Nc3
{[%clk 00:24:39]} {[%emt 00:02:33]} Bc6 {[%clk 00:37:45]} {[%emt 00:00:52]} 46.
Kc5 {[%clk 00:24:54]} {[%emt 00:00:15]} Be8 {[%clk 00:37:29]} {[%emt 00:00:45]}
47. Kxc4 {[%clk 00:25:09]} {[%emt 00:00:16]} Kf5 {[%clk 00:37:48]} {[%emt
00:00:11]} 48. Kb4 {[%clk 00:23:29]} {[%emt 00:02:10]} Bc6 {[%clk 00:36:57]}
{[%emt 00:01:21]} 49. b3 {[%clk 00:23:06]} {[%emt 00:00:54]} axb3 {[%clk
00:37:23]} {[%emt 00:00:04]} 50. Kxb3 {[%clk 00:23:32]} {[%emt 00:00:04]} Ke6
{[%clk 00:37:36]} {[%emt 00:00:16]} 51. Kc4 {[%clk 00:23:38]} {[%emt 00:00:24]}
Kd6 {[%clk 00:37:14]} {[%emt 00:00:52]} 52. Kd4 {[%clk 00:23:51]} {[%emt
00:00:18]} Bf3 {[%clk 00:34:50]} {[%emt 00:02:52]} 53. Ne4+ {[%clk 00:24:08]}
{[%emt 00:00:14]} Kc6 {[%clk 00:32:17]} {[%emt 00:03:03]} 54. Ke5 {[%clk
00:24:04]} {[%emt 00:00:35]} Kb5 {[%clk 00:31:51]} {[%emt 00:00:55]} 55. Nf2
{[%clk 00:24:03]} {[%emt 00:00:31]} Ka4 {[%clk 00:31:03]} {[%emt 00:01:18]} 56.
Kf5 {[%clk 00:24:11]} {[%emt 00:00:22]} Kxa3 {[%clk 00:31:15]} {[%emt
00:00:19]} 57. Nxg4 {[%clk 00:24:25]} {[%emt 00:00:16]} Kb4 {[%clk 00:31:17]}
{[%emt 00:00:27]} 58. Ne5 {[%clk 00:24:31]} {[%emt 00:00:24]} Bh5 {[%clk
00:31:15]} {[%emt 00:00:31]} 59. g4 {[%clk 00:21:53]} {[%emt 00:03:08]} Be8
{[%clk 00:31:24]} {[%emt 00:00:20]} 60. Ke6 {[%clk 00:21:30]} {[%emt 00:00:54]}
Kc5 {[%clk 00:25:40]} {[%emt 00:06:13]} 61. Ke7 {[%clk 00:19:14]} {[%emt
00:02:47]} Bb5 {[%clk 00:26:04]} {[%emt 00:00:06]} 62. Kf7 {[%clk 00:19:34]}
{[%emt 00:00:10]} Kd4 {[%clk 00:26:29]} {[%emt 00:00:05]} 63. Kxg7 {[%clk
00:19:47]} {[%emt 00:00:18]} Ke4 {[%clk 00:26:21]} {[%emt 00:00:37]} 64. Ng6
{[%clk 00:19:28]} {[%emt 00:00:49]} Be2 {[%clk 00:25:03]} {[%emt 00:01:48]} 65.
g5 {[%clk 00:14:29]} {[%emt 00:05:30]} Kf5 {[%clk 00:24:59]} {[%emt 00:00:33]}
66. Kh6 {[%clk 00:12:56]} {[%emt 00:02:03]} Bb5 {[%clk 00:23:55]} {[%emt
00:01:34]} 67. Ne7+ {[%clk 00:08:22]} {[%emt 00:05:05]} Kxf4 {[%clk 00:22:56]}
{[%emt 00:01:29]} 68. g6 {[%clk 00:07:46]} {[%emt 00:01:06]} Bc4 {[%clk
00:22:05]} {[%emt 00:01:20]} 69. Nc8 {[%clk 00:06:28]} {[%emt 00:01:49]} Ke5
{[%clk 00:19:22]} {[%emt 00:03:12]} 70. Kg5 {[%clk 00:05:53]} {[%emt 00:01:06]}
Bd3 {[%clk 00:19:16]} {[%emt 00:00:35]} 71. g7 {[%clk 00:06:04]} {[%emt
00:00:19]} Bh7 {[%clk 00:19:29]} {[%emt 00:00:16]} 72. Kh6 {[%clk 00:05:11]}
{[%emt 00:01:25]} Bg8 {[%clk 00:19:38]} {[%emt 00:00:20]} 73. Ne7 {[%clk
00:05:35]} {[%emt 00:00:07]} Ba2 {[%clk 00:19:49]} {[%emt 00:00:16]} 74. Kg6
{[%clk 00:05:48]} {[%emt 00:00:20]} Bb1+ {[%clk 00:19:25]} {[%emt 00:00:54]} 75.
Kg5 {[%clk 00:04:27]} {[%emt 00:01:50]} Ba2 {[%clk 00:18:57]} {[%emt 00:00:58]}
76. Ng6+ {[%clk 00:04:24]} {[%emt 00:00:33]} Kd6 {[%clk 00:18:57]} {[%emt
00:00:30]} 77. Kf6 {[%clk 00:04:48]} {[%emt 00:00:07]} Kd7 {[%clk 00:18:20]}
{[%emt 00:01:06]} 78. Nf8+ {[%clk 00:04:16]} {[%emt 00:01:03]} Kd6 {[%clk
00:18:27]} {[%emt 00:00:23]} 79. Ng6 {[%clk 00:04:25]} {[%emt 00:00:21]} Kd7
{[%clk 00:18:01]} {[%emt 00:00:55]} 80. Ne5+ {[%clk 00:04:34]} {[%emt
00:00:21]} Ke8 {[%clk 00:18:21]} {[%emt 00:00:11]} 81. Nc6 {[%clk 00:04:24]}
{[%emt 00:00:40]} Kd7 {[%clk 00:18:16]} {[%emt 00:00:35]} 82. Ne7 {[%clk
00:04:48]} {[%emt 00:00:07]} Kd6 {[%clk 00:17:26]} {[%emt 00:01:19]} 83. g8=Q
{[%clk 00:04:38]} {[%emt 00:00:41]} Bxg8 {[%emt 00:00:03]} 84. Nxg8 {[%emt
00:00:04]} 1/2-1/2

[Event "LASS Vårturneringar 2018"]
[Site "Linköping, Sweden"]
[Date "2018.05.10"]
[Round "2.3"]
[White "Orci, Istvan"]
[Black "Johansson, Henrik"]
[Result "0-1"]
[TimeControl "90 min + 30 sec/move + 30 min/40 moves"]
[WhiteElo "1500"]
[BlackElo "1675"]

1. e4 {[%clk 01:30:48]} {[%emt 00:00:11]} d5 {[%clk 01:30:47]} {[%emt
00:00:13]} 2. exd5 {[%clk 01:30:53]} {[%emt 00:00:26]} Nf6 {[%clk 01:31:01]}
{[%emt 00:00:15]} 3. d4 {[%clk 01:31:14]} {[%emt 00:00:09]} Bg4 {[%clk
01:31:12]} {[%emt 00:00:19]} 4. Be2 {[%clk 01:28:21]} {[%emt 00:03:22]} Bxe2
{[%clk 01:30:31]} {[%emt 00:01:12]} 5. Qxe2 {[%clk 01:26:36]} {[%emt 00:02:14]}
Qxd5 {[%clk 01:30:25]} {[%emt 00:00:37]} 6. Nf3 {[%clk 01:25:57]} {[%emt
00:01:09]} Nc6 {[%clk 01:30:26]} {[%emt 00:00:29]} 7. c3 {[%clk 01:19:41]}
{[%emt 00:06:47]} O-O-O {[%clk 01:25:33]} {[%emt 00:05:22]} 8. O-O {[%clk
01:17:10]} {[%emt 00:03:00]} e5 {[%clk 01:24:03]} {[%emt 00:02:01]} 9. c4
{[%clk 01:12:41]} {[%emt 00:04:58]} Nxd4 {[%clk 01:22:37]} {[%emt 00:01:57]} 10.
Nxd4 {[%clk 01:08:23]} {[%emt 00:04:48]} Qxd4 {[%clk 01:22:17]} {[%emt
00:00:50]} 11. Nc3 {[%clk 01:03:31]} {[%emt 00:05:22]} Bb4 {[%clk 01:14:14]}
{[%emt 00:08:32]} 12. Nb5 {[%clk 01:00:31]} {[%emt 00:03:28]} Qe4 {[%clk
01:11:35]} {[%emt 00:03:09]} 13. Qxe4 {[%clk 00:53:59]} {[%emt 00:07:03]} Nxe4
{[%clk 01:11:57]} {[%emt 00:00:08]} 14. Nxa7+ {[%clk 00:53:36]} {[%emt
00:00:53]} Kb8 {[%clk 01:12:12]} {[%emt 00:00:15]} 15. Be3 {[%clk 00:53:01]}
{[%emt 00:01:05]} c6 {[%clk 01:07:52]} {[%emt 00:04:51]} 16. a3 {[%clk
00:50:02]} {[%emt 00:03:28]} Bc5 {[%clk 01:07:58]} {[%emt 00:00:24]} 17. Rfe1
{[%clk 00:45:27]} {[%emt 00:05:06]} Kxa7 {[%clk 01:05:17]} {[%emt 00:03:12]} 18.
Bxc5+ {[%clk 00:41:57]} {[%emt 00:04:00]} Nxc5 {[%clk 01:03:36]} {[%emt
00:02:12]} 19. Rxe5 {[%clk 00:41:19]} {[%emt 00:01:07]} Ne6 {[%clk 01:02:42]}
{[%emt 00:01:21]} 20. Re2 {[%clk 00:39:01]} {[%emt 00:02:50]} Rd4 {[%clk
01:01:44]} {[%emt 00:01:28]} 21. Rc1 {[%clk 00:34:41]} {[%emt 00:04:50]} Rhd8
{[%clk 01:01:51]} {[%emt 00:00:24]} 22. g3 {[%clk 00:34:10]} {[%emt 00:01:00]}
Rd2 {[%clk 00:58:03]} {[%emt 00:04:18]} 23. Rc2 {[%clk 00:33:06]} {[%emt
00:01:35]} Rxc2 {[%clk 00:55:16]} {[%emt 00:03:16]} 24. Rxc2 {[%clk 00:32:41]}
{[%emt 00:00:57]} Nd4 {[%clk 00:55:40]} {[%emt 00:00:06]} 0-1

[ePGN "0.1;DGT LiveChess/2.1"]

[Event "LASS Vårturneringar 2018"]
[Site "Linköping, Sweden"]
[Date "2018.05.11"]
[Round "3.1"]
[White "Olsson, Magnus"]
[Black "Andersson, Görgen"]
[Result "1/2-1/2"]
[TimeControl "90 min + 30 sec/move + 30 min/40 moves"]
[WhiteElo "1677"]
[BlackElo "1908"]

1. c4 {[%clk 01:30:58]} {[%emt 00:00:02]} e5 {[%clk 01:30:45]} {[%emt
00:00:14]} 2. Nc3 {[%clk 01:31:13]} {[%emt 00:00:16]} Nc6 {[%clk 01:31:07]}
{[%emt 00:00:08]} 3. Nf3 {[%clk 01:31:37]} {[%emt 00:00:07]} f5 {[%clk
01:30:45]} {[%emt 00:00:50]} 4. d4 {[%clk 01:31:51]} {[%emt 00:00:16]} e4
{[%clk 01:28:14]} {[%emt 00:03:01]} 5. Ng5 {[%clk 01:32:01]} {[%emt 00:00:20]}
Nf6 {[%clk 01:25:39]} {[%emt 00:03:05]} 6. e3 {[%clk 01:30:28]} {[%emt
00:02:03]} Bb4 {[%clk 01:24:12]} {[%emt 00:01:57]} 7. Bd2 {[%clk 01:29:32]}
{[%emt 00:01:26]} d6 {[%clk 01:17:29]} {[%emt 00:07:12]} 8. Be2 {[%clk
01:27:01]} {[%emt 00:03:01]} O-O {[%clk 01:16:07]} {[%emt 00:01:52]} 9. Qc2
{[%clk 01:25:24]} {[%emt 00:02:08]} a5 {[%clk 01:12:49]} {[%emt 00:03:48]} 10.
Nh3 {[%clk 01:24:11]} {[%emt 00:01:42]} d5 {[%clk 01:10:22]} {[%emt 00:02:57]}
11. Nf4 {[%clk 01:22:17]} {[%emt 00:02:24]} Ne7 {[%clk 01:05:48]} {[%emt
00:05:03]} 12. Rc1 {[%clk 01:18:16]} {[%emt 00:04:32]} c6 {[%clk 01:04:50]}
{[%emt 00:01:27]} 13. cxd5 {[%clk 01:15:39]} {[%emt 00:03:08]} Bxc3 {[%clk
00:57:16]} {[%emt 00:08:04]} 14. Bxc3 {[%clk 01:13:15]} {[%emt 00:02:54]} Nfxd5
{[%clk 00:57:22]} {[%emt 00:00:24]} 15. Nxd5 {[%clk 01:12:13]} {[%emt
00:01:31]} Nxd5 {[%clk 00:56:11]} {[%emt 00:01:41]} 16. Bd2 {[%clk 01:10:54]}
{[%emt 00:01:49]} Qg5 {[%clk 00:54:32]} {[%emt 00:02:07]} 17. g3 {[%clk
01:10:28]} {[%emt 00:00:59]} Be6 {[%clk 00:52:30]} {[%emt 00:02:31]} 18. O-O
{[%clk 01:09:11]} {[%emt 00:01:47]} Nb4 {[%clk 00:44:04]} {[%emt 00:08:56]} 19.
Bxb4 {[%clk 01:08:08]} {[%emt 00:01:33]} axb4 {[%clk 00:44:24]} {[%emt
00:00:10]} 20. Bc4 {[%clk 01:08:02]} {[%emt 00:00:37]} Qe7 {[%clk 00:44:08]}
{[%emt 00:00:43]} 21. Bxe6+ {[%clk 01:04:49]} {[%emt 00:03:45]} Qxe6 {[%clk
00:44:29]} {[%emt 00:00:10]} 22. Qc4 {[%clk 01:03:42]} {[%emt 00:01:37]} Qxc4
{[%emt 00:02:05]} 23. Rxc4 {[%clk 01:03:24]} {[%emt 00:00:44]} Rxa2 {[%clk
00:43:20]} {[%emt 00:00:08]} 24. Rxb4 {[%clk 01:03:34]} {[%emt 00:00:21]} b5
{[%clk 00:42:12]} {[%emt 00:01:38]} 25. Rc1 {[%clk 01:03:48]} {[%emt 00:00:15]}
Ra6 {[%clk 00:41:08]} {[%emt 00:01:34]} 26. Rb3 {[%clk 01:02:58]} {[%emt
00:01:20]} Rd8 {[%clk 00:38:23]} {[%emt 00:03:13]} 27. Rbc3 {[%clk 01:01:28]}
{[%emt 00:02:02]} Rd6 {[%clk 00:38:47]} {[%emt 00:00:07]} 28. h4 {[%clk
01:01:11]} {[%emt 00:00:47]} Kf7 {[%clk 00:38:50]} {[%emt 00:00:25]} 29. Rc5
{[%clk 01:00:40]} {[%emt 00:01:01]} g6 {[%clk 00:35:09]} {[%emt 00:04:12]} 30.
Kf1 {[%clk 01:00:48]} {[%emt 00:00:22]} Ke6 {[%clk 00:35:07]} {[%emt 00:00:32]}
31. Ke2 {[%clk 00:59:49]} {[%emt 00:01:30]} Kd7 {[%clk 00:35:10]} {[%emt
00:00:27]} 32. f4 {[%clk 00:58:49]} {[%emt 00:01:30]} Ra2 {[%clk 00:32:53]}
{[%emt 00:02:46]} 33. R1c2 {[%clk 00:57:28]} {[%emt 00:01:52]} Ra1 {[%clk
00:31:41]} {[%emt 00:01:42]} 34. Rc1 {[%clk 00:57:43]} {[%emt 00:00:15]} Ra2
{[%clk 00:30:26]} {[%emt 00:01:45]} 35. R1c2 {[%clk 00:57:36]} {[%emt
00:00:37]} Ra1 {[%clk 00:29:27]} {[%emt 00:01:29]} 36. Rc1 {[%clk 00:56:52]}
{[%emt 00:01:14]} Rxc1 {[%clk 00:29:46]} {[%emt 00:00:10]} 37. Rxc1 {[%clk
00:57:18]} {[%emt 00:00:06]} Ke6 {[%clk 00:30:11]} {[%emt 00:00:04]} 38. Rc5
{[%clk 00:57:26]} {[%emt 00:00:22]} Kd7 {[%clk 00:30:15]} {[%emt 00:00:27]} 39.
Kd2 {[%clk 00:55:30]} {[%emt 00:02:25]} Kc7 {[%clk 00:28:54]} {[%emt 00:01:51]}
40. Kc3 {[%clk 00:53:16]} {[%emt 00:02:44]} Kb6 {[%clk 00:29:06]} {[%emt
00:00:18]} 41. Kb4 {[%clk 00:52:13]} {[%emt 00:01:34]} Rd7 {[%clk 00:27:22]}
{[%emt 00:02:14]} 42. Rc3 {[%clk 00:50:28]} {[%emt 00:02:14]} Ra7 {[%clk
00:27:17]} {[%emt 00:00:36]} 43. Rc1 {[%clk 00:49:31]} {[%emt 00:01:27]} Ra4+
{[%clk 00:26:33]} {[%emt 00:01:14]} 44. Kb3 {[%clk 00:49:55]} {[%emt 00:00:06]}
h6 {[%clk 00:24:26]} {[%emt 00:02:36]} 45. Rg1 {[%clk 00:48:49]} {[%emt
00:01:36]} Kc7 {[%clk 00:18:57]} {[%emt 00:05:59]} 46. Rc1 {[%clk 00:48:27]}
{[%emt 00:00:52]} Kd6 {[%clk 00:19:16]} {[%emt 00:00:12]} 47. Rd1 {[%clk
00:48:33]} {[%emt 00:00:24]} Kd5 {[%clk 00:19:16]} {[%emt 00:00:29]} 48. Rc1
{[%clk 00:48:52]} {[%emt 00:00:12]} Kd6 {[%clk 00:15:09]} {[%emt 00:04:37]} 49.
Rd1 {[%clk 00:48:55]} {[%emt 00:00:27]} Rc4 {[%clk 00:14:26]} {[%emt 00:01:13]}
50. Ra1 {[%clk 00:49:05]} {[%emt 00:00:20]} Ke6 {[%clk 00:13:51]} {[%emt
00:01:05]} 51. Rd1 {[%clk 00:49:09]} {[%emt 00:00:26]} Kf6 {[%clk 00:13:25]}
{[%emt 00:00:56]} 52. Rh1 {[%clk 00:49:10]} {[%emt 00:00:29]} Kf7 {[%clk
00:11:44]} {[%emt 00:02:10]} 53. Ra1 {[%clk 00:49:20]} {[%emt 00:00:20]} Ke6
{[%clk 00:11:26]} {[%emt 00:00:48]} 54. Rd1 {[%clk 00:49:38]} {[%emt 00:00:12]}
Kf7 {[%clk 00:09:29]} {[%emt 00:02:26]} 55. Ra1 {[%clk 00:49:02]} {[%emt
00:01:07]} Kf6 {[%clk 00:09:42]} {[%emt 00:00:17]} 56. Rh1 {[%clk 00:49:22]}
{[%emt 00:00:10]} Kg7 {[%clk 00:01:05]} {[%emt 00:09:07]} 57. Ra1 {[%clk
00:48:13]} {[%emt 00:01:39]} Kf6 {[%clk 00:28:57]} {[%emt 00:02:38]} 1/2-1/2